Workbook

Sheet Tabelle1
B2: Wie spät ist es wirklich?
H3: ´´
B4: Weltzeit (UTC) | C4: -2 | D4: h | E4: UTC: MEZ = Systemzeit- 1 h, MESZ = Systemzeit - 2 h
B6: Zeitzone | C6: 2 | D6: h | E6: z.B. Deutschland UTC + 1 h (MEZ) oder UTC +2h (MESZ)
B8: Länge | C8: 9 | D8: ° | E8: 44 | F8: ´ | G8: 0 | H8: ´´ | I8: =IF(C8>0,C8+E8/60+G8/3600,C8-E8/60-G8/3600) -> 9.733333333 | L8: Systemzeit | N8: 14.07.2019 11:38:57
L9: UTC | N9: =N8+$C$4/24 -> 2019-07-14T09:38:57
B10: Breite | C10: 52 | D10: ° | E10: 22 | F10: ´ | G10: 40 | I10: =IF(C10>0,C10+E10/60+G10/3600,C10-E10/60-G10/3600) -> 52.37777778 | Q10: Ingo Mennerich, Februar 2019 (Version Juli 19)
B14: UTC / GMT | E14: Zonenzeit | I14: MOZ | L14: WOZ | Q14: Sternzeit (ST)
B15: Weltzeit | E15: (MEZ=UTC+1h, MESZ=UTC+2h) | I15: Mittlere Ortszeit | L15: Wahre Ortszeit = Wahre Sonnenzeit | Q15: Die Sternzeit (ST) ist identisch mit der Rektas-
B16: Mittlere Ortszeit in Greenwich | E16: Gesetzliche Zeit bezogen auf UTC. | I16: bezogen auf den Null- | L16: Zeitgleichung (min) | N16: =Tabelle3!E97 -> -5.867252659 | Q16: zension (R.A.) des Himmelskörpers der aktuell
B17: (London) | E17: Jede Zeitzone umfasst idealer- | I17: meridian und abhängig von | L17: Meridiandurchgang | N17: =Tabelle3!E117 -> 12:26:56.035 | Q17: durch den Meridian geht (auf der Nordhalbkugel
E18: weise 15° Längengrade. | I18: der geographischen Länge | L18: Sonnenaufgang | N18: =Tabelle3!E121 -> 04:18:49.227 | Q18: im Süden). Beispiel: Der Stern Sirius (R.A. 06 h
I19: des Ortes (1 h ≙ 15°) | L19: Sonnenuntergang | N19: =Tabelle3!E126 -> 20:35:02.843 | Q19: 45 min) steht um 06 h 45 min ST im Süden.
B21: UTC/GMT | E21: MEZ/MESZ oder Zonenzeit | I21: MOZ | L21: WOZ | Q21: Sternzeit
B34: =B47 -> 09:38:57 | E34: =I47 -> 11:38:57 | I34: =B88 -> 10:17:53 | L34: =I88 -> 10:12:00.965 | Q34: =Q46 -> 05:45:46.383
A40: UTC / Greenwich | H40: Zonenzeit | O40: Sternzeit
A42: Zeitmakro - F5 | B42: =N9 -> 2019-07-14T09:38:57 | H42: WOZ: UTC + L | I42: =B42+C6/24 -> 2019-07-14T11:38:57 | O42: UTC | Q42: =N9 -> 43660.40205
A44: HEUTE() | B44: =TODAY() -> 2019-07-14 | H44: HEUTE() | I44: =TODAY() -> 2019-07-14 | O44: Sternzeit (GMST) | Q44: =Tabelle2!T6 -> 05:06:50.383
O46: Lokale Sternzeit (LST) | Q46: =Tabelle2!Y6 -> 05:45:46.383
B47: =B42-B44 -> 09:38:57 | I47: =I42-I44 -> 11:38:57
Q48: =Q46*24 -> 5.762884071
A49: Tagesbruchteil | B49: =B47 -> 0.4020486111 | H49: Tagesbruchteil | I49: =I47 -> 0.4853819444
O50: Stundenbruchteil | Q50: =Q48-INT(Q48) -> 0.7628840715
A51: Stunden | B51: =B49*24 -> 9.649166667 | H51: Stunden | I51: =I49*24 -> 11.64916667
B52: =IF(B51>12,B51-12,B51) -> 9.649166667 | I52: =IF(I51>12,I51-12,I51) -> 11.64916667 | O52: Minuten | Q52: =Q50*60 -> 45.77304429
O54: Minutenbruchteil | Q54: =Q52-INT(Q52) -> 0.7730442898
A55: Stundenbruchteil | B55: =B51-INT(B51) -> 0.6491666667 | H55: Stundenbruchteil | I55: =I51-INT(I51) -> 0.6491666667
O56: Sekunden | Q56: =Q54*60 -> 46.38265739
A57: Minuten | B57: =B55*60 -> 38.95 | H57: Minuten | I57: =I55*60 -> 38.95
A59: Minutenbruchteil | B59: =B57-INT(B57) -> 0.9500000002 | H59: Minutenbruchteil | I59: =I57-INT(I57) -> 0.9500000037
A61: Sekunden | B61: =B59*60 -> 57.00000001 | H61: Sekunden | I61: =I59*60 -> 57.00000022
A64: Stunden (Winkel) | H64: Stunden (Winkel) | O64: Stunden (Lokale Sternzeit, Winkel)
A65: =B52/12*360 -> 289.475 | B65: 0 | D65: X (sin a) | E65: =SIN(RADIANS(A65))*0.5 -> -0.471393526 | F65: 0 | H65: =I52/12*360 -> 349.475 | I65: 0 | K65: X (sin a) | L65: =SIN(RADIANS(H65))*0.5 -> -0.09133226699 | M65: 0 | O65: =Q48/24*360 -> 86.44326107 | P65: 0 | R65: X (sin a) | S65: =SIN(RADIANS(O65))*0.6 -> 0.5988443123 | T65: 0
A66: 360 | B66: 0 | D66: y (cos a) | E66: =COS(RADIANS(A65))*0.5 -> 0.1666977613 | F66: 0 | H66: 360 | I66: 0 | K66: y (cos a) | L66: =COS(RADIANS(H65))*0.5 -> 0.4915876494 | M66: 0 | O66: 360 | P66: 0 | R66: y (cos a) | S66: =COS(RADIANS(O65))*0.6 -> 0.03722216608 | T66: 0
A69: Minuten (Winkel) | H69: Minuten (Winkel) | O69: Minuten (Lokale Sternzeit, Winkel)
A70: =B55*360 -> 233.7 | B70: 360 | D70: X (sin a) | E70: =SIN(RADIANS(A70))*0.9 -> -0.725335454 | F70: 0 | H70: =I55*360 -> 233.7 | I70: 360 | K70: X (sin a) | L70: =SIN(RADIANS(H70))*0.9 -> -0.7253354542 | M70: 0 | O70: =Q52/60*360 -> 274.6382657 | P70: 360 | R70: X (sin a) | S70: =SIN(RADIANS(O70))*1 -> -0.9967250943 | T70: 0
A71: 0 | B71: 0 | D71: y (cos a) | E71: =COS(RADIANS(A70))*0.9 -> -0.5328118609 | F71: 0 | H71: 0 | I71: 0 | K71: y (cos a) | L71: =COS(RADIANS(H70))*0.9 -> -0.5328118606 | M71: 0 | O71: 0 | P71: 0 | R71: y (cos a) | S71: =COS(RADIANS(O70))*1 -> 0.08086461826 | T71: 0
A74: Sekunden (Winkel) | H74: Sekunden (Winkel) | O74: Sekunden (Lokale Sternzeit, Winkel)
A75: =B59*360 -> 342.0000001 | B75: 360 | D75: X (sin a) | E75: =SIN(RADIANS(A75))*0.9 -> -0.2781152939 | F75: 0 | H75: =I59*360 -> 342.0000013 | I75: 360 | K75: X (sin a) | L75: =SIN(RADIANS(H75))*0.9 -> -0.2781152752 | M75: 0 | O75: =Q56/60*360 -> 278.2959443 | P75: 360 | R75: X (sin a) | S75: =SIN(RADIANS(O75))*1 -> -0.9895360048 | T75: 0
A76: 0 | B76: 0 | D76: y (cos a) | E76: =COS(RADIANS(A75))*0.9 -> 0.855950865 | F76: 0 | H76: 0 | I76: 0 | K76: y (cos a) | L76: =COS(RADIANS(H75))*0.9 -> 0.8559508711 | M76: 0 | O76: 0 | P76: 0 | R76: y (cos a) | S76: =COS(RADIANS(O75))*1 -> 0.1442861571 | T76: 0
A81: Mittlere Ortszeit (MOZ) | H81: Wahre Ortszeit (WOZ)
A83: UTC + Länge | B83: =B42+I8/15/24 -> 2019-07-14T10:17:53 | H83: MOZ + Zeitgleichung | I83: =B42+I8/15/24+N16/60/24 -> 2019-07-14T10:12:00.965
A85: HEUTE() | B85: =TODAY() -> 2019-07-14 | H85: HEUTE() | I85: =TODAY() -> 2019-07-14
B88: =B83-B85 -> 10:17:53 | I88: =I83-I85 -> 10:12:00.965
A90: Tagesbruchteil | B90: =B88 -> 0.4290856481 | H90: Tagesbruchteil | I90: =I88 -> 0.4250111671
A92: Stunden | B92: =B90*24 -> 10.29805556 | H92: Stunden | I92: =I90*24 -> 10.20026801
B93: =IF(B92>12,B92-12,B92) -> 10.29805556 | I93: =IF(I92>12,I92-12,I92) -> 10.20026801
A96: Stundenbruchteil | B96: =B92-INT(B92) -> 0.2980555555 | H96: Stundenbruchteil | I96: =I92-INT(I92) -> 0.2002680112
A98: Minuten | B98: =B96*60 -> 17.88333333 | H98: Minuten | I98: =I96*60 -> 12.01608067
A100: Minutenbruchteil | B100: =B98-INT(B98) -> 0.8833333298 | H100: Minutenbruchteil | I100: =I98-INT(I98) -> 0.01608067495
A102: Sekunden | B102: =B100*60 -> 52.99999979 | H102: Sekunden | I102: =I100*60 -> 0.9648404969
A105: Stunden (Winkel) | H105: Stunden (Winkel)
A106: =B93/12*360 -> 308.9416667 | B106: 0 | D106: X (sin a) | E106: =SIN(RADIANS(A106))*0.5 -> -0.3888931376 | F106: 0 | H106: =I93/12*360 -> 306.0080403 | I106: 0 | K106: X (sin a) | L106: =SIN(RADIANS(H106))*0.5 -> -0.4044672511 | M106: 0
A107: 360 | B107: 0 | D107: y (cos a) | E107: =COS(RADIANS(A106))*0.5 -> 0.314264423 | F107: 0 | H107: 360 | I107: 0 | K107: y (cos a) | L107: =COS(RADIANS(H106))*0.5 -> 0.2939493881 | M107: 0
A110: Minuten (Winkel) | H110: Minuten (Winkel)
A111: =B96*360 -> 107.3 | B111: 360 | D111: X (sin a) | E111: =SIN(RADIANS(A111))*0.9 -> 0.8592847197 | F111: 0 | H111: =I96*360 -> 72.09648405 | I111: 360 | K111: X (sin a) | L111: =SIN(RADIANS(H111))*0.9 -> 0.8564179871 | M111: 0
A112: 0 | B112: 0 | D112: y (cos a) | E112: =COS(RADIANS(A111))*0.9 -> -0.2676373864 | F112: 0 | H112: 0 | I112: 0 | K112: y (cos a) | L112: =COS(RADIANS(H111))*0.9 -> 0.2766735106 | M112: 0
A115: Sekunden (Winkel) | H115: Sekunden (Winkel)
A116: =B100*360 -> 317.9999987 | B116: 360 | D116: X (sin a) | E116: =SIN(RADIANS(A116))*0.9 -> -0.6022175605 | F116: 0 | H116: =I100*360 -> 5.789042981 | I116: 360 | K116: X (sin a) | L116: =SIN(RADIANS(H116))*0.9 -> 0.09077943445 | M116: 0
A117: 0 | B117: 0 | D117: y (cos a) | E117: =COS(RADIANS(A116))*0.9 -> 0.6688303296 | F117: 0 | H117: 0 | I117: 0 | K117: y (cos a) | L117: =COS(RADIANS(H116))*0.9 -> 0.8954100146 | M117: 0

Sheet Tabelle2
B5: Datum, Uhrzeit | D5: Uhrzeit | E5: JD | F5: Tage J2000 | G5: T | I5: JD0 | J5: T0 | L5: Sternzeit GMST(0) | M5: norm. 24h | N5: Sternzeit Greenwich (GMST(0)) | O5: q Greenwich (0 UTC) | P5: Lokale Sternzeit (0) | R5: Sternzeit G | S5: norm. 24h | T5: Sternzeit Greenwich (GMST) | U5: q Greenwich | W5: HA Frühlingspunkt | Y5: Lokale Sternzeit
B6: =Tabelle1!Q42 -> 2019-07-14T09:38:57 | C6: =B6 -> 43660.40205 | D6: =B6-INT(B6) -> 09:38:57 | E6: =2451545+B6-DATE(2000,1,1) -> 2458679.402 | F6: =E6-2451545.5 -> 7133.902049 | G6: =F6/36525 -> 0.1953155934 | I6: =INT(2451545+B6-DATE(2000,1,1)) -> 2458679 | J6: =(I6-2451545.5)/36525 -> 0.1953045859 | L6: =6.697376+2400.05134*J6+1.002738*0 -> 475.4384091 | M6: =L6-INT(L6/24)*24 -> 19.4384091 | N6: =M6/24 -> 19:26:18.273 | O6: =M6*15 -> 291.5761365 | P6: =N6+Tabelle1!I8/60/24*4 -> 20:05:14.273 | R6: =6.697376+2400.05134*J6+1.002738*D6*24 -> 485.1139952 | S6: =R6-INT(R6/24)*24 -> 5.113995183 | T6: =S6/24 -> 05:06:50.383 | U6: =S6*15 -> 76.70992774 | W6: =U6+Tabelle1!I8 -> 86.44326107 | X6: =W6/15 -> 5.762884071 | Y6: =X6/24 -> 05:45:46.383
B10: =Tabelle1!Q42 -> 43660.40205 | C10: =B10 -> 43660.40205 | D10: =B10-INT(B10) -> 09:38:57 | E10: =2451545+B10-DATE(2000,1,1) -> 2458679.402 | F10: =E10-2451545.5 -> 7133.902049 | G10: =F10/36525 -> 0.1953155934
C14: Sonne Ekliptikale Länge
D16: L0 | F16: M | G16: LÄNGE
C17: =280.46+0.9856474*F6 -> 7311.972006 | D17: =C17-INT(C17/360)*360 -> 111.9720061 | E17: =357.528+0.9856003*G6 -> 357.7205031 | F17: =E17-INT(E17/360)*360 -> 357.7205031 | G17: =D17+1.915*SIN(RADIANS(F17))+0.01997*SIN(RADIANS(2*F17)) -> 111.8942511

Sheet Tabelle3
A1: Sonne
A3: DATUM | B3: =NOW() -> 2019-07-14T11:39:00.540 | C3: UTC | E3: Sternzeit | G3: =B3 -> 2019-07-14T11:39:00.540
E4: Länge (Sonne) | G4: =E31 -> 112.0597123
A5: Julianisches Datum: Anzahl seit 01.01. -4723, 00:00 UT | E5: GMST0= | F5: =G4/15+12 -> 19.47064749 | G5: =F5/24 -> 19:28:14.331
E6: Länge l° | G6: =Tabelle1!I8 -> 9.733333333
E7: Uhrzeit (UT) | G7: 00:00:00
E8: SIDTIME | F8: =F5+G7*24+G6/15 -> 20.11953638 | G8: =F8/24 -> 20:07:10.331
A9: T: Anzahl der seit 01.01.2000 vergangenen Jahrhunderte
A14: Julianisches Datum (JD) | C14: =2451544.5+B3-DATE(2000,1,1)+1 -> 2458679.985 | E14: "+1" , Korrektur | G14: 2451544,5+B3-DATUM(2000;1;1)+1 | I14: 2451544,5 + DATUM - DATUM(2000;1;1)
A16: Differenz zu J2000 | C16: =B3-DATE(2000,1,1)+1 -> 7135.485423 | D16: Tage | E16: "+1" , Korrektur | G16: B3-DATUM(2000;1;1)+1 | I16: DATUM - DATUM(2000;1;1) +1
A18: T (Jahrhunderte) | C18: =(C14-2451545)/36525 -> 0.1953452546 | G18: (C14-2451545)/36525 | I18: JD-2451545)/36525
B20: v | E20: =282.9404+0.0000470935*C16 -> 283.276435 | G20: 282,9404+0,0000470935*C16 | I20: Länge des Perihelions (Periapsis)
B22: a= | E22: 1 | G22: 1 | I22: Mittlere Distanz Erde - Somnne (1 AU)
B24: e= | E24: =0.016709-0.000000001151*C16 -> 0.01670078706 | G24: 0,016709-0,000000001151*C16 | I24: Exzentrizität
B26: M= | E26: =356.047+0.9856002585*C16 -> 7388.783277 | G26: 356,047+0,9856002585*C16 | I26: Mittlere Anomalie
E27: =E26-INT(E26/360)*360 -> 188.7832773 | G27: E26-GANZZAHL(E26/360)*360 | I27: Auf Bereich 0°-360° reduziert: M-GANZZAHL(L/360)*360
B30: Heliozentrische Länge | E30: =E20+E27 -> 472.0597123 | G30: E20+E27 | I30: L=v+M
E31: =E30-INT(E30/360)*360 -> 112.0597123 | G31: E30-GANZZAHL(E30/360)*360 | I31: Auf Bereich 0°-360° reduziert: L-GANZZAHL(L/360)*360
B33: E= | E33: =E27+(180/PI()*E24*SIN(RADIANS(E27))*(1+E24*COS(RADIANS(E27)))) -> 188.6395752 | G33: E27+(180/PI()*E24*SIN(BOGENMASS(E27))*(1+E24*COS(BOGENMASS(E27)))) | I33: Exzentrische Anomalie
B38: X | E38: =COS(RADIANS(E33))-E24 -> -1.005353646 | G38: COS(BOGENMASS(E33))-E24 | I38: X=cos(E) - e
B40: Y | E40: =SIN(RADIANS(E33))*SQRT(1-E24^2) -> -0.1501973077 | G40: SIN(BOGENMASS(E33))*WURZEL(1-E24^2) | I40: Y=sin(E) * WURZEL(1 - e^2)
B44: Entfernung r | E44: =SQRT(E38^2+E40^2) -> 1.016511281 | G44: WURZEL(E38^2+E40^2) | I44: WURZEL(x^2+ y^2)
A48: Wahre Anomalie
B49: v=arctan2( y, x ) | E49: =ATAN2(E40,E38)*180/PI() -> -98.49700079 | G49: ARCTAN2(E40;E38)*180/PI() | I49: Quadrant beachten!
E50: =IF(ATAN2(E38,E40)*180/PI()<0,360+ATAN2(E38,E40)*180/PI(),ATAN2(E38,E40)*180/PI()) -> 188.4970008 | G50: WENN(ARCTAN2(E38;E40)*180/PI()<0;360+ARCTAN2(E38;E40)*180/PI();ARCTAN2(E38;E40)*180/PI()) | I50: WENN v<0; 360 - v
A51: Ekliptikale Länge
B52: Länge l | E52: =E20+E50 -> 471.7734358 | G52: E20+E50 | I52: v+v
E53: =E52-INT(E52/360)*360 -> 111.7734358 | G53: E52-GANZZAHL(E52/360)*360 | I53: l-GANZZAHL(l/360)*360
B56: x(Ekliptik)= | E56: =E44*COS(RADIANS(E53)) -> -0.377061969 | G56: E44*COS(BOGENMASS(E53)) | I56: r*COS(l)
B58: y(Ekliptik)= | E58: =E44*SIN(RADIANS(E53)) -> 0.9439912371 | G58: E44*SIN(BOGENMASS(E53)) | I58: r*SIN(l)
B60: z(Ekliptik)= | E60: 0 | G60: 0: Sonne "läuft" scheinbar nahezu entlang die Ekliptik | I60: 0
A62: Umwandlung Ekliptikales System - Äquatoriales System
B64: Schiefe der Ekliptik e | E64: 23.4406 | G64: 23.4406
B66: x(Äquator)= | E66: =E56 -> -0.377061969 | G66: E56 | I66: x(Äquator) = x(Ekliptik)
B68: y(Äquator)= | E68: =E58*COS(RADIANS(E64))-E60*SIN(RADIANS(E64)) -> 0.8660864485 | G68: E58*COS(BOGENMASS(E64))-E60*SIN(BOGENMASS(E64)) | I68: y(Ekliptik)*COS(e) - z(Ekliptik)*SIN(e)
B70: z(Äquator)= | E70: =E58*SIN(RADIANS(E64))+E60*COS(RADIANS(E64)) -> 0.3755179348 | G70: E58*SIN(BOGENMASS(E64))+E60*COS(BOGENMASS(E64)) | I70: y(Ekliptik)*SIN€ + z(Ekliptik)*COS(e)
A72: Geozentrische Position
B74: r = (Distanz Erde - Sonne) | E74: =SQRT(E66^2+E68^2+E70^2) -> 1.016511281 | G74: WURZEL(E66^2+E68^2+E70^2) | I74: WURZEL(x^2 + y^2 + z^2)
E76: =ATAN2(E66,E68)*180/PI() -> 113.5265255 | G76: ARCTAN2(E66;E68)*180/PI() | I76: ARCTAN2(x;y)*180/PI()
B77: Stundenwinkel | E77: =IF(E76<0,360+E76,E76) -> 113.5265255 | G77: WENN(E76<0;360+E76;E76) | I77: WENN STUNDENWINKEL<0,360+RA
B78: RA | E78: =E77/15 -> 7.568435033 | G78: E77/15 | I78: STUNDENWINKEL/15
E79: =E78/24 -> 07:34:06.366 | G79: E78/24 | I79: Zeitformat
B81: d Deklination | E81: =ASIN(E70/E74)*180/PI() -> 21.67975079 | G81: ARCSIN(E70/E74)*180/PI() | I81: ARCSIN(z/r)*180/PI()
C83: Alternativ | E83: =ATAN2(E70,SQRT(E66^2+E68^2))*180/PI() -> 68.32024921 | G83: ARCTAN2(E70;WURZEL(E66^2+E68^2))*180/PI() | I83: ARCTAN2(z;WURZEL(x^2+y^2))*180/PI()
E84: =IF(E83>E64,90-E83,E83) -> 21.67975079 | G84: WENN(E83>E64;90-E83;E83) | I84: WENN d > e; 90 - d
A86: Geographische Länge | E86: =Tabelle1!I8 -> 9.733333333 | G86: Tabelle1!C7
A88: Geographische Breite | E88: =Tabelle1!I10 -> 52.37777778 | G88: Tabelle1!I9
A91: Zeitgleichung
B93: https://de.wikipedia.org/wiki/Zeitgleichung
B95: ZG* | E95: =ATAN((TAN(RADIANS(E31))-TAN(RADIANS(E53))*COS(RADIANS(E64)))/(1+TAN(RADIANS(E31))*TAN(RADIANS(E53))*COS(RADIANS(E64))))*180/PI() -> -1.466813165 | F95: ° | G95: ARCTAN((TAN(BOGENMASS(E31))-TAN(BOGENMASS(E53))*COS(BOGENMASS(E64)))/(1+TAN(BOGENMASS(E31))*TAN(BOGENMASS(E53))*COS(BOGENMASS(E64))))*180/PI()
G96: ARCTAN((TAN(BOGENMASS(HEL.LÄNGE))-TAN(BOGENMASS(EKL.LÄNGE))*COS(BOGENMASS(SCHIEFE EKL)))/(1+TAN(BOGENMASS(HEL.LÄNGE))*TAN(BOGENMASS(EKL.LÄNGE))*COS(BOGENMASS(SCHIEFE EKL))))*180/PI()
B97: ZG | E97: =E95*4 -> -5.867252659 | F97: min | G97: E95*4
A101: Tageslänge, Durchgang, Aufgang und Untergang | G101: =ACOS(((SIN(RADIANS(E88))*SIN(RADIANS(E81))/(COS(RADIANS(E88))*COS(RADIANS(E81))))))*180/PI() -> 58.94899269 | M101: =TAN(RADIANS(E88))*TAN(RADIANS(E81)) -> 0.5158009601
M102: =ACOS(TAN(RADIANS(E88))*TAN(RADIANS(E81)))*180/PI() -> 58.94899269 | N102: =ACOS(M101)*180/PI()/12 -> 4.912416057
A103: astronomisch | E103: =ACOS((SIN(RADIANS(-0.833))-(SIN(RADIANS(E88))*SIN(RADIANS(E81))/(COS(RADIANS(E88))*COS(RADIANS(E81))))))*180/PI() -> 122.0283653 | G103: ARCCOS((SIN(BOGENMASS(-0,833))-(SIN(BOGENMASS(E88))*SIN(BOGENMASS(E81))/(COS(BOGENMASS(E88))*COS(BOGENMASS(E81))))))*180/PI()
E104: =E103/15 -> 8.135224353 | G104: E103/15
B105: Halber Tagbogen | D105: =12*ACOS((SIN(RADIANS(-0.833))-(SIN(RADIANS(E88))*SIN(RADIANS(E81))/(COS(RADIANS(E88))*COS(RADIANS(E81))))))/PI() -> 8.135224353 | G105: 12*ARCCOS((SIN(BOGENMASS(-0,833))-(SIN(BOGENMASS(E88))*SIN(BOGENMASS(E81))/(COS(BOGENMASS(E88))*COS(BOGENMASS(E81))))))/PI()
G106: 12*ARCCOS((SIN(BOGENMASS(-0,833))-(SIN(BOGENMASS(BREITE))*SIN(BOGENMASS(DEKL))/(COS(BOGENMASS(BREITE))*COS(BOGENMASS(DEKL))))))/PI()
B107: Tageslänge | D107: =2*D105 -> 16.27044871 | G107: 2*D105
E108: =D107/24 -> 16:16:13.615 | G108: D107/24
B111: Mittag | C111: MOZ | D111: 12 | G111: 12
B112: Zeitgleichung (min) | D112: =E97 -> -5.867252659 | G112: E97
D113: =D112/60 -> -0.09778754431 | G113: D112/60
B115: Differenz MEZ/MEZ - MOZ | D115: =(15-E86)*4/60 -> 0.3511111111 | G115: (15-E86)*4/60
B116: Mittag MEZ | D116: =12+D115-D113 -> 12.44889866 | G116: 12+D115-D113
E117: =D116/24 -> 12:26:56.035 | G117: D116/24
B120: SA | C120: MEZ | D120: =D116-D105 -> 4.313674302 | G120: D116-D105
E121: =D120/24 -> 04:18:49.227 | G121: D120/24
D123: Azimut | E123: =DEGREES(ACOS((SIN(RADIANS(E81))/COS(RADIANS(E88))))) -> 52.75999922 | G123: GRAD(ARCCOS((SIN(BOGENMASS(E81))/COS(BOGENMASS(E88)))))
G124: GRAD(ARCCOS((SIN(BOGENMASS(DEKL))/COS(BOGENMASS(BREITE)))))
B125: SU | C125: MEZ | D125: =D116+D105 -> 20.58412301 | G125: D116+D105
E126: =D125/24 -> 20:35:02.843 | G126: D125/24
D128: Azimut | E128: =360-DEGREES(ACOS((SIN(RADIANS(E81))/COS(RADIANS(E88))))) -> 307.2400008 | G128: 360-GRAD(ARCCOS((SIN(BOGENMASS(E81))/COS(BOGENMASS(E88)))))
G129: 360-GRAD(ARCCOS((SIN(BOGENMASS(DEKL))/COS(BOGENMASS(BREITE)))))
